fUSD/lending_fUSD_20240426
["ID","MTS","AMOUNT","RATE_DAILY","PERIOD"]
[323676099,1714158652096,-2592.57,0.00011238,2]
[323676100,1714158652108,-805.75,0.00011238,2]
[323676101,1714158652118,-500.0,0.00011238,2]
[323676102,1714158652131,-500.0,0.00011238,2]
[323676103,1714158652142,-860.11,0.00011238,2]
[323676104,1714158652154,-223.98646344,0.00011238,2]
[323676105,1714158652165,-500.0,0.00011238,2]
[323676106,1714158652180,-500.0,0.00011238,2]
[323676107,1714158652191,-234.99,0.00011238,2]
[323676108,1714158652202,-500.0,0.00011238,2]
[323676109,1714158652213,-500.0,0.00011238,2]
[323676110,1714158652226,-500.0,0.00011238,2]
[323676111,1714158652237,-1073.44,0.00011238,2]
[323676112,1714158652248,-500.0,0.00011238,2]
[323676113,1714158652259,-500.0,0.00011238,2]
[323676114,1714158652270,-2174.13,0.00011238,2]
[323676115,1714158652280,-500.0,0.00011238,2]
[323676116,1714158652292,-500.0,0.00011238,2]
[323676117,1714158652303,-504.57,0.00011238,2]
[323676118,1714158652314,-500.0,0.00011238,2]
[323676119,1714158652325,-1470.94,0.00011238,2]
[323676120,1714158652335,-500.0,0.00011238,2]
[323676121,1714158652346,-500.0,0.00011238,2]
[323676122,1714158652357,-2811.73,0.00011238,2]
[323676123,1714158652368,-500.0,0.00011238,2]
[323676124,1714158652379,-5749.93,0.00011238,2]
[323676125,1714158652390,-5715.84,0.00011238,2]
[323676126,1714158652401,-500.0,0.00011238,2]
[323676127,1714158652412,-500.0,0.00011238,2]
[323676128,1714158652423,-1330.04,0.00011238,2]
[323676129,1714158652434,-500.0,0.00011238,2]
[323676130,1714158652445,-500.0,0.00011238,2]
[323676131,1714158652456,-175.57779374,0.00011276,2]
[323676132,1714158652466,-500.0,0.00011286,2]
[323676133,1714158652477,-500.0,0.00011287,2]
[323676134,1714158652487,-269949.78462196,0.00011288,2]
[323676135,1714158653300,-127932.181689,0.00011288,2]
[323676136,1714158653330,-500.0,0.00010964,2]
[323676137,1714158653339,-222.52774619,0.00011288,2]
[323676138,1714158653351,-2630.05297866,0.00011288,2]
[323676139,1714158653364,-88718.06522915,0.00011288,2]
[323676140,1714158653374,-151.0,0.00011288,2]
[323676141,1714158653384,-3011.67433,0.00011288,2]
[323676142,1714158653394,-3011.67433,0.00011288,2]
[323676143,1714158653404,-150.0,0.00011339,2]
[323676144,1714158653413,-150.0,0.00011344,2]
[323676145,1714158653422,-150.0,0.00011347,2]
[323676146,1714158653432,-500.0,0.00011349,2]
[323676147,1714158653441,-173.86023274,0.00011349,2]
[323676148,1714158653450,-596.11,0.00011349,2]
[323676149,1714158653461,-500.0,0.00011349,2]
[323676150,1714158653471,-500.0,0.00011349,2]
[323676151,1714158653480,-500.0,0.00011349,2]
[323676152,1714158653489,-500.0,0.00011349,2]
[323676153,1714158653499,-500.0,0.00011349,2]
[323676154,1714158653509,-500.0,0.00011349,2]
[323676155,1714158653521,-500.0,0.00011349,2]
[323676156,1714158653531,-500.0,0.00011349,2]
[323676157,1714158653540,-500.0,0.00011349,2]
[323676158,1714158653550,-500.0,0.00011349,2]
[323676159,1714158653560,-500.0,0.00011349,2]
[323676160,1714158653570,-500.0,0.00011349,2]
[323676161,1714158653579,-500.0,0.00011349,2]
[323676162,1714158653588,-500.0,0.00011349,2]
[323676163,1714158653597,-500.0,0.00011349,2]
[323676164,1714158653607,-500.0,0.00011349,2]
[323676165,1714158653616,-500.0,0.00011349,2]
[323676166,1714158653626,-616.82,0.00011349,2]
[323676167,1714158653635,-500.0,0.00011349,2]
[323676168,1714158653644,-210.13,0.00011349,2]
[323676169,1714158653653,-538.91029396,0.00011349,2]
[323676170,1714158653663,-500.0,0.00011349,2]
[323676171,1714158653672,-500.0,0.00011349,2]
[323676172,1714158653681,-500.0,0.00011349,2]
[323676173,1714158653690,-727.56,0.00011349,2]
[323676174,1714158653700,-500.0,0.00011349,2]
[323676175,1714158653709,-500.0,0.00011349,2]
[323676176,1714158653718,-700.41,0.00011349,2]
[323676177,1714158653728,-500.0,0.00011349,2]
[323676178,1714158653738,-508.06,0.00011349,2]
[323676179,1714158653748,-219.64406003,0.00011349,2]
[323676180,1714158653759,-677.6,0.00011349,2]
[323676181,1714158653768,-500.0,0.00011349,2]
[323676182,1714158653777,-500.0,0.00011349,2]
[323676183,1714158653786,-1252.35,0.00011349,2]
[323676184,1714158653797,-500.0,0.00011349,2]
[323676185,1714158653806,-500.0,0.00011349,2]
[323676186,1714158653817,-500.0,0.00011349,2]
[323676187,1714158653826,-500.0,0.00011349,2]
[323676188,1714158653835,-500.0,0.00011349,2]
[323676189,1714158653844,-500.0,0.00011349,2]
[323676190,1714158653853,-500.0,0.00011349,2]
[323676191,1714158653863,-717.89,0.00011349,2]
[323676192,1714158653872,-755.97,0.00011349,2]
[323676193,1714158653881,-500.0,0.00011349,2]
[323676194,1714158653891,-500.0,0.00011349,2]
[323676195,1714158653900,-679.06,0.00011349,2]
[323676196,1714158653909,-500.0,0.00011349,2]
[323676197,1714158653919,-500.0,0.00011349,2]
[323676198,1714158653929,-624.5,0.00011349,2]
[323676199,1714158653939,-500.0,0.00011349,2]
[323676200,1714158653949,-500.0,0.00011349,2]
[323676201,1714158653959,-500.0,0.00011349,2]
[323676202,1714158653970,-500.0,0.00011349,2]
[323676203,1714158653979,-500.0,0.00011349,2]
[323676204,1714158653988,-500.0,0.00011349,2]
[323676205,1714158653998,-1455.14,0.00011349,2]
[323676206,1714158654009,-208.32,0.00011349,2]
[323676207,1714158654020,-730.91,0.00011349,2]
[323676208,1714158654031,-966.42,0.00011349,2]
[323676209,1714158654041,-500.0,0.00011349,2]
[323676210,1714158654051,-500.0,0.00011349,2]
[323676211,1714158654062,-547.67,0.00011349,2]
[323676212,1714158654071,-824.9,0.00011349,2]
[323676213,1714158654080,-979.87,0.00011349,2]
[323676214,1714158654091,-721.92,0.00011349,2]
[323676215,1714158654100,-500.0,0.00011349,2]
[323676216,1714158654110,-500.0,0.00011349,2]
[323676217,1714158654120,-500.0,0.00011349,2]
[323676218,1714158654130,-500.0,0.00011349,2]
[323676219,1714158654140,-500.0,0.00011349,2]
[323676220,1714158654150,-500.0,0.00011349,2]
[323676221,1714158654159,-1090.83,0.00011349,2]
[323676222,1714158654170,-857.67,0.00011349,2]
[323676223,1714158654183,-500.0,0.00011349,2]
[323676224,1714158654192,-500.0,0.00011349,2]
[323676225,1714158654202,-500.0,0.00011349,2]
[323676226,1714158654211,-1157.95,0.00011349,2]
[323676227,1714158654223,-500.0,0.00011349,2]
[323676228,1714158654232,-172.50542432,0.00011349,2]
[323676229,1714158654243,-500.0,0.00011349,2]
[323676230,1714158654254,-500.0,0.00011349,2]
[323676231,1714158654264,-540.18,0.00011349,2]
[323676232,1714158654273,-622.88,0.00011349,2]
[323676233,1714158654282,-895.0,0.00011349,2]
[323676234,1714158654292,-500.0,0.00011349,2]
[323676235,1714158654302,-417.5,0.00011349,2]
[323676236,1714158654312,-500.0,0.00011349,2]
[323676237,1714158654321,-500.0,0.00011349,2]
[323676238,1714158654332,-627.28477058,0.00011349,2]
[323676239,1714158654342,-520.42,0.00011349,2]
[323676240,1714158654353,-500.0,0.00011349,2]
[323676241,1714158654362,-706.13,0.00011349,2]
[323676242,1714158654371,-500.0,0.00011349,2]
[323676243,1714158654381,-500.0,0.00011349,2]
[323676244,1714158654391,-1182.59,0.00011349,2]
[323676245,1714158654401,-500.0,0.00011349,2]
[323676246,1714158654410,-504.54,0.00011349,2]
[323676247,1714158654419,-500.0,0.00011349,2]
[323676248,1714158654428,-500.0,0.00011349,2]
[323676249,1714158654437,-500.0,0.00011349,2]
[323676250,1714158654446,-500.0,0.00011349,2]
[323676251,1714158654455,-967.6,0.00011349,2]
[323676252,1714158654464,-1330.11,0.00011349,2]
[323676253,1714158654473,-500.0,0.00011349,2]
[323676254,1714158654483,-1347.26,0.00011349,2]
[323676255,1714158654492,-500.0,0.0001135,2]
[323676256,1714158654501,-500.0,0.0001135,2]
[323676257,1714158654510,-500.0,0.00011351,2]
[323676258,1714158654519,-1003.54,0.00011351,2]
[323676259,1714158654529,-734.66,0.00011351,2]
[323676260,1714158654538,-500.0,0.00011351,2]
[323676261,1714158654548,-150.0,0.00011358,2]
[323676262,1714158654559,-150.0,0.0001137,2]
[323676263,1714158654569,-150.0,0.00011377,2]
[323676264,1714158654578,-150.0,0.00011378,2]
[323676265,1714158654587,-1500.0,0.00011387,2]
[323676266,1714158654596,-150.0,0.00011389,2]
[323676267,1714158654606,-150.0,0.00011394,2]
[323676268,1714158654616,-150.0,0.00011397,2]
[323676269,1714158654625,-150.0,0.00011398,2]
[323676270,1714158654635,-156.18839962,0.000114,2]
[323676271,1714158654645,-150.0,0.00011405,2]
[323676272,1714158654655,-150.0,0.0001141,2]
[323676273,1714158654665,-150.0,0.00011411,2]
[323676274,1714158654674,-150.0,0.00011411,2]
[323676275,1714158654683,-175.57779374,0.00011412,2]
[323676276,1714158654692,-150.0,0.00011413,2]
[323676277,1714158654701,-150.0,0.00011415,2]
[323676278,1714158654710,-150.0,0.00011419,2]
[323676279,1714158654719,-150.0,0.00011423,2]
[323676280,1714158654728,-150.0,0.00011423,2]
[323676281,1714158654737,-1500.0,0.00011424,2]
[323676282,1714158654746,-150.0,0.00011427,2]
[323676283,1714158654755,-150.0,0.00011438,2]
[323676284,1714158654764,-150.0,0.00011444,2]
[323676285,1714158654774,-150.0,0.00011453,2]
[323676286,1714158654783,-150.0,0.00011453,2]
[323676287,1714158654792,-150.0,0.00011454,2]
[323676288,1714158654801,-150.0,0.00011454,2]
[323676289,1714158654810,-150.0,0.00011464,2]
[323676290,1714158654819,-150.0,0.00011464,2]
[323676291,1714158654828,-300.0,0.00011471,2]
[323676292,1714158654837,-150.0,0.00011477,2]
[323676293,1714158654846,-150.0,0.00011479,2]
[323676294,1714158654855,-150.0,0.00011481,2]
[323676295,1714158654865,-807.0,0.00011482,2]
[323676296,1714158654874,-209.77,0.00011489,2]
[323676297,1714158654884,-150.0,0.0001149,2]
[323676298,1714158654893,-150.0,0.00011491,2]
[323676299,1714158654902,-150.0,0.00011492,2]
[323676300,1714158654911,-150.0,0.00011494,2]
[323676301,1714158654920,-150.0,0.00011494,2]
[323676302,1714158654930,-181.55770069,0.00011502,2]
[323676303,1714158654939,-150.0,0.00011503,2]
[323676304,1714158654948,-2000.0,0.00011506,2]
[323676305,1714158654958,-6577.34012992,0.0001151,2]
[323676306,1714158654967,-3000.0,0.0001151,2]
[323676307,1714158654977,-326.68743083,0.0001151,2]
[323676308,1714158654986,-500.0,0.0001151,2]
[323676309,1714158654995,-1320.56,0.0001151,2]
[323676310,1714158655004,-1393.78,0.00011511,2]
[323676311,1714158655014,-3246.98,0.00011511,2]
[323676312,1714158655023,-1098.56,0.00011511,2]
[323676313,1714158655032,-1745.17,0.00011511,2]
[323676314,1714158655042,-1129.76,0.00011511,2]
[323676315,1714158655051,-1217.1,0.00011511,2]
[323676316,1714158655060,-1533.64,0.00011511,2]
[323676317,1714158655069,-546.74,0.00011511,2]
[323676318,1714158655078,-1337.11,0.00011511,2]
[323676319,1714158655088,-781.72,0.00011511,2]
[323676320,1714158655097,-514.21,0.00011511,2]
[323676321,1714158655107,-1372.03,0.00011511,2]
[323676322,1714158655117,-2139.9,0.00011511,2]
[323676323,1714158655127,-2376.79,0.00011511,2]
[323676324,1714158655142,-918.04,0.00011511,2]
[323676325,1714158655152,-1697.74868932,0.00011511,2]
[323676326,1714158655205,-338.2038321,0.00011349,2]
[323676327,1714158655599,-500.0,0.00010964,2]
[323676328,1714158655609,-161.7961679,0.00011349,2]
[323676329,1714158655618,-406.08131068,0.00011511,2]
[323676330,1714158655627,-500.0,0.00011511,2]
[323676331,1714158655638,-500.0,0.00011511,2]
[323676332,1714158655647,-1106.33,0.00011511,2]
[323676333,1714158655657,-3860.44,0.00011511,2]
[323676334,1714158655666,-1727.14,0.00011511,2]
[323676335,1714158655675,-908.63743929,0.00011511,2]
[323676336,1714158655686,-349.2041712,0.00011511,2]
[323676337,1714158655697,-524.85,0.00011511,2]
[323676338,1714158655709,-1092.25838951,0.00011511,2]
[323676339,1714158655718,-1910.74160822,0.00011511,2]
[323676340,1714158655736,-479.36839178,0.00011511,2]
[323676341,1714158655745,-1464.34,0.00011511,2]
[323676342,1714158655754,-846.63,0.00011511,2]
[323676343,1714158655763,-554.18083622,0.00011511,2]
[323676344,1714158655796,-500.0,0.00010964,2]
[323676345,1714158655805,-415.66916378,0.00011511,2]
[323676346,1714158655815,-1732.94,0.00011511,2]
[323676347,1714158655824,-2014.97,0.00011511,2]
[323676348,1714158655834,-2456.22,0.00011511,2]
[323676349,1714158655843,-923.25,0.00011511,2]
[323676350,1714158655854,-1709.96,0.00011511,2]
[323676351,1714158655863,-1794.29,0.00011511,2]
[323676352,1714158655872,-4908.24,0.00011511,2]
[323676353,1714158655881,-1153.89,0.00011511,2]
[323676354,1714158655890,-1049.77,0.00011511,2]
[323676355,1714158655899,-939.31,0.00011511,2]
[323676356,1714158655908,-1218.06,0.00011511,2]
[323676357,1714158655917,-1127.34,0.00011511,2]
[323676358,1714158655927,-1064.46,0.00011511,2]
[323676359,1714158655936,-688.32,0.00011511,2]
[323676360,1714158655945,-980.48,0.00011511,2]
[323676361,1714158655954,-4994.93,0.00011511,2]
[323676362,1714158655963,-911.9,0.00011511,2]
[323676363,1714158656000,-500.0,0.00011511,2]
[323676364,1714158656010,-946.14,0.00011511,2]
[323676365,1714158656021,-500.0,0.00011511,2]
[323676366,1714158656031,-500.0,0.00011511,2]
[323676367,1714158656042,-500.0,0.00011511,2]
[323676368,1714158656051,-500.0,0.00011511,2]
[323676369,1714158656062,-500.0,0.00011511,2]
[323676370,1714158656072,-500.0,0.00011511,2]
[323676371,1714158656083,-500.0,0.00011511,2]
[323676372,1714158656095,-2278.55,0.00011511,2]
[323676373,1714158656106,-3513.75,0.00011511,2]
[323676374,1714158656116,-2587.33,0.00011511,2]
[323676375,1714158656126,-1030.03,0.00011511,2]
[323676376,1714158656137,-518.36008081,0.00011511,2]
[323676377,1714158656146,-4217.69,0.00011511,2]
[323676378,1714158656156,-430.55718799,0.00011511,2]
[323676379,1714158656165,-500.0,0.00011511,2]
[323676380,1714158656178,-541.27,0.00011511,2]
[323676381,1714158656188,-543.21,0.00011511,2]
[323676382,1714158656197,-6354.45,0.00011511,2]
[323676383,1714158656207,-500.0,0.00011512,2]
[323676384,1714158656217,-500.0,0.00011512,2]
[323676385,1714158656226,-500.0,0.00011512,2]
[323676386,1714158656235,-500.0,0.00011512,2]
[323676387,1714158656245,-786.35,0.00011512,2]
[323676388,1714158656255,-1268.62,0.00011512,2]
[323676389,1714158656265,-500.0,0.00011512,2]
[323676390,1714158656274,-500.0,0.00011512,2]
[323676391,1714158656284,-500.0,0.00011512,2]
[323676392,1714158656294,-500.0,0.00011512,2]
[323676393,1714158656303,-500.0,0.00011512,2]
[323676394,1714158656313,-1594.4,0.00011512,2]
[323676395,1714158656323,-500.0,0.00011512,2]
[323676396,1714158656332,-696.39,0.00011512,2]
[323676397,1714158656343,-500.0,0.00011512,2]
[323676398,1714158656352,-520.79,0.00011512,2]
[323676399,1714158656362,-500.0,0.00011512,2]
[323676400,1714158656372,-500.0,0.00011512,2]
[323676401,1714158656384,-1018.42,0.00011512,2]
[323676402,1714158656395,-500.0,0.00011512,2]
[323676403,1714158656405,-361.93,0.00011512,2]
[323676404,1714158656415,-1574.78,0.00011512,2]
[323676405,1714158656427,-500.0,0.00011512,2]
[323676406,1714158656436,-500.0,0.00011512,2]
[323676407,1714158656447,-593.22,0.00011512,2]
[323676408,1714158656457,-1639.71,0.00011512,2]
[323676409,1714158656468,-500.0,0.00011512,2]
[323676410,1714158656478,-500.0,0.00011512,2]
[323676411,1714158656490,-500.0,0.00011512,2]
[323676412,1714158656500,-687.62,0.00011512,2]
[323676413,1714158656699,-500.0,0.00011512,2]
[323676414,1714158656721,-1809.33,0.00011512,2]
[323676415,1714158656732,-500.0,0.00011512,2]
[323676416,1714158656743,-500.0,0.00011512,2]
[323676417,1714158656754,-228.05,0.00011512,2]
[323676418,1714158656763,-500.0,0.00011512,2]
[323676419,1714158656774,-500.0,0.00011512,2]
[323676420,1714158656783,-500.0,0.00011512,2]
[323676421,1714158656792,-151.0,0.00011512,2]
[323676422,1714158656802,-387.19,0.00011512,2]
[323676423,1714158656811,-500.0,0.00011512,2]
[323676424,1714158656821,-618.02725465,0.00011512,2]
[323676425,1714158656834,-60.28274535,0.00011512,2]
[323676426,1714158656844,-660.24,0.00011512,2]
[323676427,1714158656853,-189.47725465,0.00011512,2]
[323676428,1714158657662,-995.56,0.00010963,2]
[323676429,1714158657672,-500.0,0.00010964,2]
[323676430,1714158657682,-500.0,0.00010964,2]
[323676431,1714158657693,-500.0,0.00010964,2]
[323676432,1714158657703,-500.0,0.00011238,2]
[323676433,1714158657714,-514.68995305,0.00011512,2]
[323676434,1714158657751,-241.57,0.00010964,2]
[323676435,1714158657763,-67.0527923,0.00011512,2]
[323676436,1714158657775,-500.0,0.00011512,2]
[323676437,1714158657786,-535.92,0.00011512,2]
[323676438,1714158657795,-500.0,0.00011512,2]
[323676439,1714158657805,-1766.2571947,0.00011512,2]
[323676440,1714158657850,-34.57304044,0.00011237,2]
[323676441,1714158657876,-960.98695956,0.00011237,2]
[323676442,1714158657889,-213.3228053,0.00011512,2]
[323676443,1714158657901,-500.0,0.00011512,2]
[323676444,1714158657913,-1114.91,0.00011512,2]
[323676445,1714158657923,-603.02,0.00011512,2]
[323676446,1714158657935,-500.0,0.00011512,2]
[323676447,1714158657946,-658.17,0.00011512,2]
[323676448,1714158657958,-623.8,0.00011512,2]
[323676449,1714158657967,-500.0,0.00011512,2]
[323676450,1714158657978,-500.0,0.00011512,2]
[323676451,1714158657988,-500.0,0.00011512,2]
[323676452,1714158658000,-2812.92,0.00011512,2]
[323676453,1714158658010,-500.0,0.00011512,2]
[323676454,1714158658021,-1656.0,0.00011512,2]
[323676455,1714158658031,-278.96159061,0.00011512,2]
[323676456,1714158658041,-500.0,0.00011512,2]
[323676457,1714158658053,-1599.28,0.00011512,2]
[323676458,1714158658063,-2748.52,0.00011512,2]
[323676459,1714158658073,-500.0,0.00011512,2]
[323676460,1714158658083,-1112.23,0.00011512,2]
[323676461,1714158658094,-500.0,0.00011512,2]
[323676462,1714158658105,-1765.27,0.00011512,2]
[323676463,1714158658116,-1469.93,0.00011512,2]
[323676464,1714158658126,-693.5,0.00011512,2]
[323676465,1714158658140,-500.0,0.00011512,2]
[323676466,1714158658150,-2029.49033993,0.00011512,2]
[323676467,1714158658185,-995.56,0.00011511,2]
[323676468,1714158658196,-27.63966007,0.00011512,2]
[323676469,1714158658206,-410.65261573,0.00011512,2]
[323676470,1714158659022,-10000.0,0.00010959,2]
[323676471,1714158659032,-1297.67611515,0.00010962,2]
[323676472,1714158659043,-155.0,0.00010963,2]
[323676473,1714158659054,-500.0,0.00010963,2]
[323676474,1714158659065,-270.80276921,0.00010963,2]
[323676475,1714158659076,-200.36848203,0.00010963,2]
[323676476,1714158659173,-500.0,0.00010963,2]
[323676477,1714158659185,-500.0,0.00010964,2]
[323676478,1714158659195,-500.0,0.00010964,2]
[323676479,1714158659203,-500.0,0.00010964,2]
[323676480,1714158659213,-603.27,0.00011075,2]
[323676481,1714158659222,-500.0,0.00011237,2]
[323676482,1714158659233,-505.25,0.00011238,2]
[323676483,1714158659243,-500.0,0.00011238,2]
[323676484,1714158659252,-390.69,0.00011511,2]
[323676485,1714158659263,-4977.20738427,0.00011512,2]
[323676486,1714158659272,-500.0,0.00011512,2]
[323676487,1714158659281,-1423.2,0.00011512,2]
[323676488,1714158659290,-968.37,0.00011512,2]
[323676489,1714158659300,-3963.16,0.00011512,2]
[323676490,1714158659309,-1061.1,0.00011512,2]
[323676491,1714158659318,-849.9,0.00011512,2]
[323676492,1714158659328,-500.0,0.00011512,2]
[323676493,1714158659337,-2166.55,0.00011512,2]
[323676494,1714158659347,-3602.34,0.00011512,2]
[323676495,1714158659356,-500.0,0.00011512,2]
[323676496,1714158659365,-3467.57,0.00011512,2]
[323676497,1714158659375,-4449.63,0.00011512,2]
[323676498,1714158659385,-521.47,0.00011512,2]
[323676499,1714158659394,-3762.94,0.00011512,2]
[323676500,1714158659405,-264.90987403,0.00011512,2]
[323676501,1714158659414,-6856.25,0.00011512,2]
[323676502,1714158659424,-500.0,0.00011512,2]
[323676503,1714158659433,-1314.83735714,0.00011512,2]
[323676504,1714158659472,-452.663,0.00010963,2]
[323676505,1714158659501,-312.38,0.00010963,2]
[323676506,1714158659514,-1555.99723764,0.00010963,2]
[323676507,1714158659524,-500.0,0.00010963,2]
[323676508,1714158659534,-500.0,0.00010964,2]
[323676509,1714158659544,-937.19264286,0.00011512,2]
[323676510,1714158659554,-112.56008825,0.00011512,2]
[323676511,1714158659566,-3295.87484753,0.00011512,2]
[323676517,1714159065161,374.54,8.219e-05,2]
[323676519,1714159292403,202.6,0.000245,120]
[323676521,1714159435537,155.0,0.00024666,120]
[323676522,1714159468131,150.0,0.00024666,120]
[323676523,1714159501902,150.0,0.00024667,120]
[323676524,1714159532197,355.81,8.219e-05,2]
[323676683,1714159772112,-533.67271647,9.048e-05,2]
[323676687,1714159831508,-308.60746084,9.003e-05,2]
[323676688,1714159831520,-419.67248778,9.003e-05,2]
[323676689,1714159831534,-566.15813026,9.003e-05,2]
[323676690,1714159831545,-1417.95171359,9.004e-05,2]
[323676691,1714159831569,-13387.44828641,9.004e-05,2]
[323676692,1714159831579,-155.0,9.044e-05,2]
[323676693,1714159831589,-2360.77834746,9.044e-05,2]
[323676697,1714159831867,-4333.55292304,9.044e-05,2]
[323676698,1714159831878,-3081.79127059,9.045e-05,2]
[323676699,1714159831887,-4324.18335427,9.045e-05,2]
[323676700,1714159831897,-325.81505107,9.045e-05,2]
[323676702,1714159831906,-6535.4504,9.045e-05,2]
[323676704,1714159831916,-3001.1274951,9.046e-05,2]
[323676706,1714159831926,-1612.0,9.047e-05,2]
[323676708,1714159831935,-22774.57803664,9.047e-05,2]
[323676709,1714159831953,-539.45421001,9.047e-05,2]
[323676710,1714159831963,-2356.23677028,9.047e-05,2]
[323676711,1714159831974,-2600.34,9.052e-05,2]
[323676712,1714159831984,-535.93386891,9.067e-05,2]
[323676713,1714159831995,-209.77,9.071e-05,2]
[323676714,1714159832004,-164.15,9.151e-05,2]
[323676715,1714159832014,-163.97,9.172e-05,2]
[323676716,1714159832024,-250.0,9.186e-05,2]
[323676717,1714159832035,-880.0,9.203e-05,2]
[323676718,1714159832046,-163.97,9.226e-05,2]
[323676719,1714159832055,-163.97,9.279e-05,2]
[323676720,1714159832066,-163.97,9.332e-05,2]
[323676721,1714159832076,-163.97,9.385e-05,2]
[323676722,1714159832086,-200.87,9.409e-05,2]
[323676723,1714159832096,-163.97,9.438e-05,2]
[323676724,1714159832106,-163.97,9.491e-05,2]
[323676725,1714159832117,-163.97,9.544e-05,2]
[323676726,1714159832127,-163.97,9.597e-05,2]
[323676727,1714159832137,-163.97,9.65e-05,2]
[323676728,1714159832147,-739.33,9.67e-05,2]
[323676729,1714159832157,-499.99,9.67e-05,2]
[323676730,1714159832168,-282.39,9.67e-05,2]
[323676731,1714159832179,-324.07,0.00010259,2]
[323676732,1714159832192,-324.07,0.00010262,2]
[323676733,1714159832204,-324.07,0.00010265,2]
[323676734,1714159832215,-324.07,0.00010267,2]
[323676735,1714159832226,-324.07,0.0001027,2]
[323676736,1714159832238,-324.07,0.00010273,2]
[323676737,1714159832248,-324.07,0.00010276,2]
[323676738,1714159832258,-324.07,0.00010278,2]
[323676739,1714159832271,-324.07,0.00010281,2]
[323676740,1714159832282,-324.07,0.00010284,2]
[323676741,1714159832293,-324.07,0.00010286,2]
[323676742,1714159832303,-324.07,0.00010289,2]
[323676743,1714159832314,-324.07,0.00010292,2]
[323676744,1714159832324,-324.07,0.00010295,2]
[323676745,1714159832334,-324.07,0.00010297,2]
[323676746,1714159832345,-324.07,0.000103,2]
[323676747,1714159832355,-324.07,0.00010303,2]
[323676748,1714159832366,-324.07,0.00010305,2]
[323676749,1714159832377,-324.07,0.00010308,2]
[323676750,1714159832387,-324.07,0.00010311,2]
[323676751,1714159832396,-880.0,0.00010353,2]
[323676752,1714159832405,-150.0,0.00010411,2]
[323676753,1714159832416,-355.81,0.00010425,2]
[323676754,1714159832428,-200.87,0.00010585,2]
[323676755,1714159832441,-1609.0,0.00010663,2]
[323676756,1714159832451,-210.036,0.00010663,2]
[323676757,1714159832462,-1000.0,0.00010763,2]
[323676758,1714159832473,-56578.6873,0.00010763,2]
[323676759,1714159832482,-1000.0,0.00010763,2]
[323676760,1714159832492,-182.18056906,0.00010858,2]
[323676761,1714159832503,-2221.84905568,0.00010858,2]
[323676762,1714159832513,-245000.0,0.00010863,2]
[323676763,1714159832523,-3425.6867,0.00010863,2]
[323676764,1714159832535,-40897.89046865,0.00010863,2]
[323676765,1714159832550,-5787.10733135,0.00010863,2]
[323676766,1714159832560,-155.0,0.000109,2]
[323676767,1714159832571,-1987.76006459,0.00010953,2]
[323676768,1714159832583,-500.0,0.00010958,2]
[323676769,1714159832593,-500.0,0.00010958,2]
[323676770,1714159832603,-500.0,0.00010958,2]
[323676771,1714159832614,-500.0,0.00010958,2]
[323676772,1714159832624,-500.0,0.00010958,2]
[323676773,1714159832634,-500.0,0.00010958,2]